bitfinex/quotes_BTCUSD_20241107
["timestamp","ask_amount","ask_price","bid_price","bid_amount"]
[1730947186242,1.5,75298.0,75297.0,0.00585175]
[1730947186583,1.5,75298.0,75297.0,0.0190857]
[1730947186792,1.51002394,75298.0,75297.0,0.0190857]
[1730947188705,1.51002394,75298.0,75297.0,0.02902609]
[1730947188942,0.01002394,75298.0,75297.0,0.02902609]
[1730947189302,1.5,75298.0,75297.0,0.02902609]
[1730947189535,1.5,75298.0,75297.0,0.02902678]
[1730947189744,1.51002394,75298.0,75297.0,0.02902678]
[1730947192280,0.01002394,75298.0,75297.0,0.02902678]
[1730947192448,4e-05,75300.0,75297.0,0.16892369]
[1730947192668,4e-05,75300.0,75299.0,0.00585175]
[1730947192869,4e-05,75300.0,75299.0,0.03753426]
[1730947193115,4e-05,75300.0,75299.0,0.03752935]
[1730947193333,4e-05,75300.0,75299.0,0.03167929]
[1730947194145,4e-05,75300.0,75299.0,0.03752858]
[1730947194981,4e-05,75300.0,75299.0,0.03752794]
[1730947195175,4e-05,75300.0,75299.0,0.03167929]
[1730947195381,4e-05,75300.0,75299.0,0.03487162]
[1730947195597,4e-05,75300.0,75299.0,0.02902356]
[1730947196864,4e-05,75300.0,75299.0,0.02902082]
[1730947197745,0.01003974,75300.0,75299.0,0.02902082]
[1730947197975,0.050452,75303.0,75299.0,0.02902082]
[1730947198198,0.050452,75303.0,75300.0,0.02902082]
[1730947198414,0.050452,75303.0,75301.0,0.02902082]
[1730947198669,0.050452,75303.0,75302.0,0.02902082]
[1730947198899,1.550452,75303.0,75302.0,0.02902082]
[1730947200458,1.550452,75303.0,75302.0,0.02902064]
[1730947201853,1.56049401,75303.0,75302.0,0.02902064]
[1730947203008,1.56049401,75303.0,75302.0,0.02487158]
[1730947203236,1.56049401,75303.0,75302.0,0.02902075]
[1730947205107,1.51079401,75303.0,75302.0,0.02902075]
[1730947206498,1.51079401,75303.0,75302.0,0.00993455]
[1730947206721,1.51079401,75303.0,75302.0,0.02902397]
[1730947207396,1.64049401,75303.0,75302.0,0.02902397]
[1730947209214,1.64049401,75303.0,75302.0,0.02072612]
[1730947210295,1.64049401,75303.0,75302.0,0.0107872]
[1730947210511,1.64049401,75303.0,75302.0,0.02073606]
[1730947210512,1.51079401,75303.0,75302.0,0.02073606]
[1730947210977,1.51256214,75303.0,75302.0,0.02073606]
[1730947211505,1.51256214,75303.0,75302.0,0.01409778]
[1730947211959,1.51256214,75303.0,75302.0,0.020737]
[1730947212409,1.51079401,75303.0,75302.0,0.020737]
[1730947212747,0.01079401,75303.0,75302.0,0.16620989]
[1730947213009,0.00882229,75303.0,75302.0,1.08780739]
[1730947213230,0.000752,75317.0,75316.0,0.01323187]
[1730947213450,0.000752,75317.0,75316.0,1.13809139]
[1730947213670,0.00957429,75317.0,75316.0,1.08855627]
[1730947213889,0.000752,75317.0,75316.0,1.15799036]
[1730947214124,0.000752,75317.0,75316.0,1.16791672]
[1730947214346,0.000752,75317.0,75316.0,1.25349377]
[1730947214591,0.000752,75317.0,75316.0,1.09845466]
[1730947215066,0.000752,75317.0,75316.0,1.0885283]
[1730947215518,0.000752,75317.0,75316.0,1.0905283]
[1730947217050,0.000752,75317.0,75316.0,0.98931842]
[1730947217268,0.000752,75317.0,75316.0,1.02155097]
[1730947217493,0.000752,75317.0,75316.0,1.02155011]
[1730947217726,0.000752,75317.0,75316.0,1.01955011]
[1730947218494,0.000752,75317.0,75316.0,1.02155011]
[1730947218609,0.000752,75325.0,75324.0,0.01323187]
[1730947218827,0.000752,75325.0,75324.0,0.16618132]
[1730947218828,0.00969156,75325.0,75324.0,0.16618132]
[1730947219738,0.000752,75325.0,75324.0,0.16618132]
[1730947219990,0.000515,75325.0,75324.0,0.34622043]
[1730947220244,0.000515,75325.0,75324.0,1.19695667]
[1730947220477,0.000515,75325.0,75324.0,1.04191756]
[1730947220969,0.000515,75325.0,75324.0,1.22812734]
[1730947221210,0.000515,75325.0,75324.0,1.27341095]
[1730947221460,0.000515,75325.0,75324.0,1.31301182]
[1730947221949,0.000515,75325.0,75324.0,1.27341095]
[1730947222190,0.000515,75325.0,75324.0,1.04727184]
[1730947222434,0.000515,75325.0,75324.0,1.05307518]
[1730947222652,0.000515,75325.0,75324.0,1.20431095]
[1730947223332,0.000515,75325.0,75324.0,1.22731095]
[1730947223531,0.000515,75325.0,75324.0,1.04727184]
[1730947223952,0.1978931,75334.0,75329.0,0.01323187]
[1730947224212,0.1978931,75334.0,75329.0,0.17443151]
[1730947224427,0.000752,75335.0,75329.0,0.17443151]
[1730947225077,0.000752,75335.0,75329.0,0.17443203]
[1730947225293,0.000752,75335.0,75329.0,0.84117442]
[1730947225553,0.000752,75335.0,75329.0,0.84697003]
[1730947225753,0.000752,75335.0,75329.0,0.84117442]
[1730947227033,0.000752,75335.0,75329.0,0.96617442]
[1730947227234,0.000752,75335.0,75329.0,0.96417442]
[1730947228106,0.000752,75335.0,75329.0,0.94117442]
[1730947228564,0.000752,75335.0,75329.0,0.84117442]
[1730947233446,0.000752,75335.0,75329.0,0.86617442]
[1730947233930,0.001668,75340.0,75339.0,0.005]
[1730947234154,0.001668,75340.0,75339.0,0.83294255]
[1730947235677,0.001668,75340.0,75339.0,0.82305715]
[1730947236104,0.001668,75340.0,75339.0,0.83293311]
[1730947236796,0.001668,75340.0,75339.0,0.82793311]
[1730947237276,0.001668,75340.0,75339.0,0.69569209]
[1730947238120,0.078668,75340.0,75339.0,0.69569209]
[1730947238754,1.578668,75340.0,75339.0,0.67088914]
[1730947238961,1.578668,75340.0,75339.0,0.69570464]
[1730947239158,1.58551836,75340.0,75339.0,0.69570464]
[1730947242634,0.08551836,75340.0,75339.0,0.69570464]
[1730947243069,0.2877256,75340.0,75339.0,0.02896225]
[1730947243290,1.7877256,75340.0,75339.0,0.02896225]
[1730947245568,1.63268649,75340.0,75339.0,0.02896225]
[1730947245804,1.63091836,75340.0,75339.0,0.02896225]
[1730947246451,1.63268649,75340.0,75339.0,0.02896225]
[1730947246982,1.58551836,75340.0,75339.0,0.00988718]
[1730947247287,1.50851836,75340.0,75339.0,0.01907626]
[1730947247376,1.50851836,75340.0,75339.0,0.0290146]
[1730947247620,1.50851836,75340.0,75339.0,0.0474136]
[1730947249002,1.50685036,75340.0,75339.0,0.0474136]
[1730947249127,0.00740276,75340.0,75339.0,0.0474136]
[1730947249557,0.00176813,75346.0,75339.0,0.0474136]
[1730947249773,0.00176813,75346.0,75340.0,0.0290146]
[1730947249989,0.00740272,75344.0,75339.0,0.018399]
[1730947250208,0.00740272,75344.0,75340.0,0.02901502]
[1730947250416,0.00917085,75344.0,75341.0,0.02901502]
[1730947250635,0.00917085,75344.0,75342.0,0.00994006]
[1730947250844,0.00917085,75344.0,75343.0,0.00994006]
[1730947251267,1.50917085,75344.0,75343.0,0.00994006]
[1730947251478,1.50917085,75344.0,75343.0,0.02901502]
[1730947252569,1.50917085,75344.0,75343.0,0.02072156]
[1730947253719,1.50917085,75344.0,75343.0,0.02072166]
[1730947257152,1.51000385,75344.0,75343.0,0.02072166]
[1730947257380,1.51000385,75344.0,75343.0,0.01078243]
[1730947257600,1.63950385,75344.0,75343.0,0.02072412]
[1730947257817,1.63950385,75344.0,75343.0,0.02072452]
[1730947258029,1.63950385,75344.0,75343.0,0.01408893]
[1730947258501,1.87174487,75344.0,75343.0,0.00414724]
[1730947259364,0.2295,75343.0,75339.0,0.020065]
[1730947259582,0.15503911,75340.0,75339.0,0.020065]
[1730947259820,0.28453911,75340.0,75339.0,0.02421266]
[1730947260041,0.28630724,75340.0,75339.0,0.02421266]
[1730947260252,1.79368533,75340.0,75339.0,0.02421266]
[1730947261290,1.63864622,75340.0,75339.0,0.02421266]
[1730947262170,1.63864622,75340.0,75339.0,0.03084879]
[1730947262542,1.50914622,75340.0,75339.0,0.03084879]
[1730947262855,1.50737809,75340.0,75339.0,0.03084879]
[1730947263076,0.00737809,75340.0,75339.0,0.16808981]
[1730947263299,0.00260113,75344.0,75339.0,0.03084879]
[1730947263516,0.00176813,75341.0,75340.0,0.01661592]
[1730947263981,0.00853514,75341.0,75340.0,0.01661592]
[1730947264199,1.50176813,75341.0,75340.0,0.01661592]
[1730947264418,1.50853514,75341.0,75340.0,0.01078379]
[1730947264636,1.50853514,75341.0,75340.0,0.01907783]
[1730947266918,1.58523514,75341.0,75340.0,0.01907783]
[1730947267317,1.68523514,75341.0,75340.0,0.01078379]
[1730947267705,1.81747616,75341.0,75340.0,0.00414766]
[1730947267875,1.81747616,75341.0,75340.0,0.01078372]
[1730947268287,1.81747616,75341.0,75340.0,0.00414766]
[1730947269834,1.84727844,75341.0,75340.0,0.00414766]
[1730947270058,1.86227844,75341.0,75340.0,0.00414766]
[1730947270356,1.86311144,75341.0,75340.0,0.00414766]
[1730947271631,2.36811144,75341.0,75340.0,0.00414766]
[1730947271842,0.1,75340.0,75339.0,0.020065]
[1730947272049,0.39228013,75340.0,75339.0,0.020065]
[1730947272262,0.39228013,75340.0,75339.0,0.0242128]
[1730947272263,0.39905659,75340.0,75339.0,0.0242128]
[1730947272676,0.40082472,75340.0,75339.0,0.0242128]
[1730947273274,0.40082472,75340.0,75332.0,0.00014209]
[1730947273275,0.60676813,75333.0,75332.0,0.00014209]
[1730947273432,1.16314896,75333.0,75332.0,0.00014209]
[1730947273640,1.17514896,75333.0,75332.0,0.00014209]
[1730947273844,2.67514896,75333.0,75332.0,0.00014209]
[1730947274049,2.7128181,75333.0,75332.0,0.00014209]
[1730947274472,2.5800751,75333.0,75332.0,0.00014209]
[1730947274706,2.67314896,75333.0,75332.0,0.00014209]
[1730947275077,2.67514896,75333.0,75332.0,0.00014209]
[1730947275279,2.03540596,75333.0,75332.0,0.00014209]
[1730947275517,2.54040596,75333.0,75332.0,0.00014209]
[1730947275922,2.52540596,75333.0,75332.0,0.00014209]
[1730947276141,2.23812583,75333.0,75332.0,0.00014209]
[1730947276352,2.26810538,75333.0,75332.0,0.00014209]
[1730947276576,2.28210538,75333.0,75332.0,0.00014209]
[1730947276801,2.26810538,75333.0,75332.0,0.00014209]
[1730947278105,1.76810538,75333.0,75332.0,0.00014209]
[1730947278332,1.72040538,75333.0,75332.0,0.00014209]
[1730947278773,1.63850538,75333.0,75332.0,0.00677902]
[1730947282122,1.63850538,75333.0,75332.0,0.00014209]
[1730947282528,1.63850538,75333.0,75332.0,0.00180809]
[1730947282736,1.77074815,75333.0,75332.0,0.00180809]
[1730947282941,1.63850538,75333.0,75332.0,0.00180809]
[1730947284115,1.63850538,75333.0,75332.0,0.00844503]
[1730947285370,1.63850538,75333.0,75332.0,0.012593]
[1730947287009,0.0067577,75333.0,75332.0,0.02088803]
[1730947287130,0.00852583,75333.0,75332.0,0.02088803]
[1730947287328,0.00176813,75333.0,75332.0,0.02664889]
[1730947287538,0.00176813,75333.0,75332.0,0.02088803]
[1730947287740,0.00176813,75333.0,75332.0,0.02664299]
[1730947287943,0.00846808,75333.0,75332.0,0.02088803]
[1730947288171,0.00176813,75333.0,75332.0,0.02088803]
[1730947288403,1.50176813,75333.0,75332.0,0.02088803]
[1730947288610,1.50846808,75333.0,75332.0,0.02088803]
[1730947288819,0.00669995,75333.0,75332.0,0.94917144]
[1730947289031,0.000833,75340.0,75336.0,0.005]
[1730947289234,0.000833,75340.0,75337.0,0.15132096]
[1730947289681,0.000833,75340.0,75338.0,0.02173428]
[1730947289899,0.000833,75340.0,75339.0,0.13224102]
[1730947290518,0.000833,75340.0,75339.0,0.15132096]
[1730947290724,0.000833,75340.0,75339.0,0.01907994]
[1730947290950,0.000833,75340.0,75339.0,0.02483096]
[1730947291373,0.000833,75340.0,75334.0,0.005]
[1730947291374,0.00176813,75339.0,75337.0,0.00575042]
[1730947291797,0.01234463,75338.0,75335.0,0.00575032]
[1730947292010,1.5,75337.0,75335.0,0.00575032]
[1730947292245,1.5,75337.0,75336.0,0.02482633]
[1730947292683,1.51234463,75337.0,75336.0,0.02482633]
[1730947292931,1.51234463,75337.0,75336.0,0.01907601]
[1730947293135,1.51411276,75337.0,75336.0,0.01907601]
[1730947295433,1.51234463,75337.0,75336.0,0.02482633]
[1730947295835,1.51234463,75337.0,75336.0,0.01907601]
[1730947295836,1.51411276,75337.0,75336.0,0.01907601]
[1730947297455,1.51234463,75337.0,75336.0,0.01907601]
[1730947297660,1.51411276,75337.0,75336.0,0.02482702]
[1730947297917,1.51234463,75337.0,75336.0,0.02482702]
[1730947298291,1.51411276,75337.0,75336.0,0.02482702]
[1730947298710,1.51411276,75337.0,75336.0,0.00663513]
[1730947298884,1.51411276,75337.0,75336.0,0.02482708]
[1730947299090,1.66915187,75337.0,75336.0,0.02482708]
[1730947299287,1.66915187,75337.0,75336.0,0.01907663]
[1730947299741,1.51411276,75337.0,75336.0,0.01907663]
[1730947303658,1.66915187,75337.0,75336.0,0.01907663]
[1730947303876,1.80139464,75337.0,75336.0,0.01907663]
[1730947304087,1.80139464,75337.0,75336.0,0.01078244]
[1730947304308,1.66915187,75337.0,75336.0,0.01907751]
[1730947304542,1.66915187,75337.0,75336.0,0.02156734]
[1730947305033,1.66915187,75337.0,75336.0,0.02156735]
[1730947305251,1.80139464,75337.0,75336.0,0.02156735]
[1730947305458,1.66915187,75337.0,75336.0,0.02156735]
[1730947306541,1.80139289,75337.0,75336.0,0.02156735]
[1730947307905,1.80139289,75337.0,75336.0,0.02323335]
[1730947308558,1.80139289,75337.0,75336.0,0.02323353]
[1730947309209,1.99470513,75337.0,75336.0,0.02323353]
[1730947309423,0.50876813,75333.0,75332.0,0.001666]
[1730947309633,0.86750915,75333.0,75332.0,0.001666]
[1730947309840,0.87989665,75333.0,75332.0,0.001666]
[1730947310056,2.51263965,75333.0,75332.0,0.001666]
[1730947310271,2.70986807,75333.0,75332.0,0.001666]
[1730947310483,2.57712507,75333.0,75332.0,0.001666]
[1730947310695,2.54513942,75333.0,75332.0,0.001666]
[1730947310915,2.42689665,75333.0,75332.0,0.001666]
[1730947311137,2.54563965,75333.0,75332.0,0.001666]
[1730947311352,2.55963965,75333.0,75332.0,0.001666]
[1730947311564,2.57363965,75333.0,75332.0,0.001666]
[1730947311779,2.54563965,75333.0,75332.0,0.001666]
[1730947312205,2.55963965,75333.0,75332.0,0.001666]
[1730947312431,2.54563965,75333.0,75332.0,0.001666]
[1730947313075,1.88289665,75333.0,75332.0,0.001666]
[1730947313283,2.38789665,75333.0,75332.0,0.001666]
[1730947313729,2.40189665,75333.0,75332.0,0.001666]
[1730947314177,2.38789665,75333.0,75332.0,0.001666]
[1730947314779,2.41849273,75333.0,75332.0,0.001666]
[1730947315609,2.41222331,75333.0,75332.0,0.001666]
[1730947320162,2.44195304,75333.0,75332.0,0.001666]
[1730947320593,2.41222331,75333.0,75332.0,0.001666]
[1730947323402,2.38222331,75333.0,75332.0,0.001666]
[1730947326850,2.38222331,75333.0,75332.0,0.00581418]
[1730947328325,2.10848229,75333.0,75332.0,0.00581418]
[1730947328538,1.60848229,75333.0,75332.0,0.00581418]
[1730947328975,1.57788621,75333.0,75332.0,0.00581418]
[1730947329184,1.50611808,75333.0,75332.0,0.01245067]
[1730947329601,1.50611808,75333.0,75332.0,0.06804537]
[1730947329940,1.50611808,75333.0,75332.0,0.05726044]
[1730947330146,1.50611808,75333.0,75332.0,0.06804321]
[1730947331553,1.50844418,75333.0,75332.0,0.068043]
[1730947333685,1.50844418,75333.0,75332.0,0.07375623]
[1730947335312,1.50844418,75333.0,75332.0,0.068043]
[1730947340406,1.50844418,75333.0,75332.0,0.020743]
[1730947341043,1.50844418,75333.0,75332.0,0.02074304]
[1730947341694,1.50844418,75333.0,75332.0,0.01244867]
[1730947344564,1.50927718,75333.0,75332.0,0.01244867]
[1730947344762,0.00927718,75333.0,75332.0,0.01244867]
[1730947345381,1.50927718,75333.0,75332.0,0.01244867]
[1730947346892,1.7674182,75333.0,75332.0,0.00581318]
[1730947347094,1.7724182,75333.0,75332.0,0.001666]
[1730947347294,1.90466097,75333.0,75332.0,0.001666]
[1730947347852,1.9027552,75333.0,75332.0,0.001666]
[1730947348239,2.0354982,75333.0,75332.0,0.001666]
[1730947348721,2.0374982,75333.0,75332.0,0.001666]
[1730947348928,2.0454982,75333.0,75332.0,0.001666]
[1730947349131,1.9127552,75333.0,75332.0,0.001666]
[1730947349358,2.0584982,75333.0,75332.0,0.001666]
[1730947349566,0.90278811,75330.0,75329.0,0.00014209]
[1730947349766,1.18682913,75330.0,75329.0,0.00014209]
[1730947349981,1.06253711,75330.0,75329.0,0.00014209]
[1730947350194,2.53953711,75330.0,75329.0,0.00014209]
[1730947350414,2.03953711,75330.0,75329.0,0.00014209]
[1730947354443,0.137756,75326.0,75325.0,0.001666]
[1730947354624,0.44709702,75326.0,75325.0,0.001666]
[1730947354896,0.4655047,75326.0,75325.0,0.001666]
[1730947355127,0.5131047,75326.0,75325.0,0.001666]
[1730947355345,2.0381047,75326.0,75325.0,0.001666]
[1730947355570,2.16834747,75326.0,75325.0,0.001666]
[1730947355799,2.0361047,75326.0,75325.0,0.001666]
[1730947356016,1.9033487,75326.0,75325.0,0.001666]
[1730947356245,2.0361047,75326.0,75325.0,0.001666]
[1730947356877,2.0381047,75326.0,75325.0,0.001666]
[1730947357712,2.0331047,75326.0,75325.0,0.001666]
[1730947357923,2.0381047,75326.0,75325.0,0.001666]
[1730947358151,2.09049395,75326.0,75325.0,0.001666]
[1730947358629,0.005,75310.0,75305.0,0.00414909]
[1730947358839,0.005,75310.0,75308.0,0.1978931]
[1730947358840,0.13224102,75309.0,75308.0,0.1978931]
[1730947359277,0.14063648,75309.0,75290.0,0.050734]
[1730947359499,0.14063648,75309.0,75301.0,0.00414944]
[1730947359728,1.5,75305.0,75301.0,0.00414944]
[1730947359905,1.65503911,75305.0,75293.0,0.0066391]
[1730947360108,1.65503911,75305.0,75294.0,0.0066391]
[1730947360327,1.66343457,75305.0,75301.0,0.00414928]
[1730947360535,1.66343457,75305.0,75292.0,0.0066391]
[1730947360763,1.50839546,75305.0,75293.0,0.0066391]
[1730947361008,1.50839546,75305.0,75294.0,0.0066391]
[1730947361224,1.50839546,75305.0,75295.0,0.0066391]
[1730947361370,1.66343457,75305.0,75290.0,0.050734]
[1730947361583,1.66343457,75305.0,75291.0,0.00663879]
[1730947361786,1.66343457,75305.0,75301.0,0.00414938]
[1730947362177,1.66343457,75305.0,75290.0,0.050734]
[1730947362178,1.66343457,75305.0,75291.0,0.00663879]
[1730947362394,1.66343457,75305.0,75301.0,0.00414939]
[1730947362605,1.66343457,75305.0,75293.0,0.00663903]
[1730947362802,1.66343457,75305.0,75291.0,0.00663903]
[1730947363010,1.66343457,75305.0,75292.0,0.00663903]
[1730947363305,1.66343457,75305.0,75291.0,0.00663903]
[1730947363510,1.66343457,75305.0,75301.0,0.00414938]
[1730947363713,1.51108515,75305.0,75304.0,0.00581722]
[1730947364122,1.51108515,75305.0,75304.0,0.06085625]
[1730947365096,1.50831386,75305.0,75304.0,0.06085625]
[1730947366632,0.00831386,75305.0,75304.0,0.06085625]
[1730947366853,0.1978931,75316.0,75304.0,0.06085625]
[1730947367076,1.5,75315.0,75305.0,0.01078825]
[1730947367290,1.5,75315.0,75306.0,0.01078825]
[1730947367901,1.5,75315.0,75307.0,0.01078825]
[1730947368568,0.15503911,75311.0,75307.0,0.01078825]
[1730947368768,0.15503911,75311.0,75308.0,0.00414922]
[1730947368976,0.15503911,75309.0,75304.0,0.001668]
[1730947369178,0.15503911,75309.0,75305.0,0.00663844]
[1730947369383,0.0762,75308.0,75306.0,0.00414919]
[1730947369593,1.5,75307.0,75306.0,0.00414919]
[1730947369824,1.5,75307.0,75304.0,0.001668]
[1730947370029,0.15503911,75305.0,75304.0,0.001668]
[1730947370644,1.65503911,75305.0,75304.0,0.001668]
[1730947370891,1.65503911,75305.0,75304.0,0.0058173]
[1730947372216,1.78728188,75305.0,75304.0,0.0058173]
[1730947372659,1.65503911,75305.0,75304.0,0.0058173]
[1730947373976,1.68495302,75305.0,75304.0,0.001668]
[1730947374387,1.68495302,75305.0,75304.0,0.00581753]
[1730947375237,1.5,75305.0,75304.0,0.00581753]
[1730947375443,1.65503911,75305.0,75304.0,0.00581753]
[1730947376483,1.65503911,75305.0,75304.0,0.01245665]
[1730947377117,1.65503911,75305.0,75304.0,0.00581753]
[1730947377331,1.65503911,75305.0,75304.0,0.01245676]
[1730947377791,1.65503911,75305.0,75304.0,0.01245682]
[1730947378615,1.6852946,75305.0,75304.0,0.01245682]
[1730947379470,0.633,75295.0,75294.0,0.00566054]
[1730947379705,0.633,75295.0,75294.0,0.00415036]
[1730947379706,1.33922924,75295.0,75294.0,0.00415036]
[1730947379946,0.351819,75290.0,75289.0,0.000833]
[1730947380191,1.98406002,75290.0,75289.0,0.000833]
[1730947380391,1.98606002,75290.0,75289.0,0.000833]
[1730947380808,2.03146002,75290.0,75289.0,0.000833]
[1730947381019,0.642835,75281.0,75280.0,0.000833]
[1730947381228,0.642835,75281.0,75244.0,0.0788]
[1730947381229,0.505,75266.0,75265.0,0.00830211]
[1730947381450,0.73724102,75266.0,75265.0,0.00830211]
[1730947381654,2.31444102,75266.0,75265.0,0.00830211]
[1730947381858,2.32539604,75266.0,75265.0,0.00830211]
[1730947382264,0.105,75265.0,75256.0,0.001502]
[1730947382470,0.23724102,75265.0,75256.0,0.001502]
[1730947382875,1.90323515,75265.0,75256.0,0.001502]
[1730947383079,1.88105904,75265.0,75256.0,0.001502]
[1730947383280,1.74819604,75265.0,75256.0,0.001502]
[1730947383685,1.90323515,75265.0,75256.0,0.001502]
[1730947384101,1.74819604,75265.0,75256.0,0.001502]
[1730947384505,1.90323515,75265.0,75256.0,0.001502]
[1730947385146,1.93349306,75265.0,75256.0,0.001502]
[1730947385349,1.77845395,75265.0,75256.0,0.001502]
[1730947386166,1.93349306,75265.0,75256.0,0.001502]
[1730947386751,1.77845395,75265.0,75256.0,0.001502]
[1730947386959,1.93349306,75265.0,75256.0,0.001502]
[1730947387311,1.77345395,75265.0,75256.0,0.001502]
[1730947387521,1.64121293,75265.0,75257.0,0.00830365]
[1730947387945,1.64121293,75265.0,75256.0,0.001502]
[1730947388779,1.51095502,75265.0,75257.0,0.00987535]
[1730947388997,1.51095502,75265.0,75264.0,0.00913627]
[1730947389609,1.51095502,75265.0,75264.0,0.01577881]
[1730947391501,1.51095502,75265.0,75264.0,0.1059489]
[1730947391712,0.01095502,75265.0,75264.0,0.1059489]
[1730947391922,0.15503911,75275.0,75264.0,0.11009989]
[1730947392136,0.15503911,75269.0,75265.0,0.02896689]
[1730947392354,0.15503911,75269.0,75266.0,0.02896689]
[1730947392585,0.15503911,75269.0,75267.0,0.02466441]
[1730947392823,1.5,75274.0,75268.0,0.0190968]
[1730947393052,0.33013412,75273.0,75269.0,0.0190968]
[1730947393269,0.13224102,75273.0,75270.0,0.0190968]
[1730947393493,0.13224102,75273.0,75271.0,0.0190968]
[1730947393708,0.13224102,75273.0,75272.0,0.0190968]
[1730947393921,0.28728013,75273.0,75272.0,0.0190968]
[1730947394143,0.28728013,75273.0,75272.0,0.02466231]
[1730947394351,0.28728013,75273.0,75272.0,0.01635974]
[1730947394561,0.28728013,75273.0,75272.0,0.0246623]
[1730947394782,1.5,75274.0,75272.0,0.01909589]
[1730947394999,1.5,75274.0,75273.0,0.01909589]
[1730947396091,1.5,75274.0,75272.0,0.0829]
[1730947396311,0.15503911,75279.0,75273.0,0.01909328]
[1730947396530,0.15503911,75279.0,75274.0,0.01909328]
[1730947396796,0.15503911,75279.0,75272.0,0.0829]
[1730947396797,0.15503911,75279.0,75275.0,0.01909328]
[1730947397018,0.15503911,75279.0,75272.0,0.0829]
[1730947397019,0.00951622,75278.0,75276.0,0.01909328]
[1730947397255,1.5,75277.0,75272.0,0.0829]
[1730947397483,1.5,75277.0,75265.0,0.128134]
[1730947397690,1.5,75277.0,75273.0,0.01909303]
[1730947397691,1.5095235,75277.0,75273.0,0.01909303]
[1730947397897,0.15503911,75275.0,75266.0,0.01909303]
[1730947398111,0.15503911,75275.0,75267.0,0.01909303]
[1730947398323,0.15503911,75275.0,75265.0,0.128134]
[1730947398324,0.0095235,75274.0,75268.0,0.01909303]
[1730947398540,0.0095235,75274.0,75269.0,0.01909303]
[1730947398755,0.0095235,75274.0,75270.0,0.01909303]
[1730947398937,0.0095235,75274.0,75271.0,0.01909303]
[1730947399183,0.0095235,75274.0,75272.0,0.01909303]
[1730947399395,0.0095235,75274.0,75273.0,0.01909303]
[1730947401098,1.5,75277.0,75267.0,0.005]
[1730947401306,0.0095235,75274.0,75273.0,0.02467204]
[1730947401521,1.5,75277.0,75273.0,0.02467204]
[1730947401752,1.5,75277.0,75274.0,0.02467403]
[1730947401971,0.15503911,75275.0,75274.0,0.02467403]
[1730947402415,0.15503911,75275.0,75274.0,0.01909299]
[1730947403067,0.15503911,75275.0,75274.0,0.01079169]
[1730947403939,0.28728013,75275.0,75274.0,0.01079169]
[1730947404389,0.28728013,75275.0,75274.0,0.01079254]
[1730947405249,1.505,75277.0,75274.0,0.01079254]
[1730947405250,1.5,75277.0,75274.0,0.01079254]
[1730947405458,1.5,75277.0,75275.0,0.01079254]
[1730947405897,1.5,75277.0,75276.0,0.01079254]
[1730947406324,1.5,75277.0,75276.0,0.01909401]
[1730947407229,1.5,75277.0,75276.0,0.01079254]
[1730947411209,1.5,75277.0,75276.0,0.01633775]
[1730947411841,1.5095774,75277.0,75276.0,0.01633775]
[1730947412255,1.5095774,75277.0,75276.0,0.01079254]
[1730947415268,1.5095774,75277.0,75276.0,0.0107919]
[1730947415678,1.5095774,75277.0,75276.0,0.00664119]
[1730947415941,1.5095774,75277.0,75276.0,0.01079193]
[1730947416563,1.5095774,75277.0,75276.0,0.00415074]
[1730947418541,1.5112454,75277.0,75276.0,0.00415074]
[1730947419004,1.5112454,75277.0,75276.0,0.00415077]
[1730947419529,1.5112454,75277.0,75276.0,0.01079195]
[1730947421410,1.5112454,75277.0,75276.0,0.00415077]
[1730947422492,1.5112454,75277.0,75274.0,0.000834]
[1730947422694,1.5112454,75277.0,75276.0,0.00415088]
[1730947422910,1.5112454,75277.0,75275.0,0.00415088]
[1730947423248,1.5112454,75277.0,75276.0,0.00415088]
[1730947423470,1.64348642,75277.0,75276.0,0.00415088]
[1730947423667,2.39467612,75277.0,75276.0,0.00415088]
[1730947424097,0.005,75275.0,75274.0,0.000834]
[1730947424422,0.14682133,75275.0,75274.0,0.0049852]
[1730947424636,0.14682133,75275.0,75274.0,0.000834]
[1730947424637,0.13724102,75275.0,75274.0,0.000834]
[1730947424858,0.14682133,75275.0,75274.0,0.000834]
[1730947425073,1.64682133,75275.0,75274.0,0.000834]
[1730947425288,1.64682133,75275.0,75265.0,0.000834]
[1730947425289,0.505,75267.0,75266.0,0.00664217]
[1730947425495,1.03220934,75267.0,75266.0,0.01079363]
[1730947425712,0.005,75266.0,75265.0,0.000834]
[1730947425937,0.23724102,75266.0,75265.0,0.000834]
[1730947426138,1.74677023,75266.0,75265.0,0.000834]
[1730947427152,1.76977023,75266.0,75265.0,0.000834]
[1730947430249,1.7997657,75266.0,75265.0,0.000834]
[1730947430667,1.9326277,75266.0,75265.0,0.000834]
[1730947430871,1.7997657,75266.0,75265.0,0.000834]
[1730947435123,1.8097657,75266.0,75265.0,0.000834]
[1730947435340,0.005,75253.0,75241.0,0.00415208]
[1730947435544,0.14168613,75252.0,75247.0,0.1978931]
[1730947435798,0.14168613,75252.0,75240.0,0.00415208]
[1730947436012,0.14168613,75252.0,75231.0,0.0816]
[1730947436013,0.14168613,75252.0,75243.0,0.1978931]
[1730947436237,1.65503911,75244.0,75232.0,0.00415208]
[1730947436415,1.65503911,75244.0,75238.0,0.1978931]
[1730947436624,0.14168613,75252.0,75231.0,0.0816]
[1730947436625,0.15503911,75239.0,75233.0,0.00415275]
[1730947436831,0.15503911,75239.0,75231.0,0.0816]
[1730947436832,0.15503911,75239.0,75234.0,0.00415275]
[1730947437052,1.65503911,75235.0,75234.0,0.00415288]
[1730947437482,1.65503911,75235.0,75229.0,0.00415288]
[1730947437685,1.65503911,75235.0,75225.0,0.0832]
[1730947437686,0.16444483,75235.0,75227.0,0.00415313]
[1730947438096,1.5,75228.0,75227.0,0.00415313]
[1730947438305,1.5,75228.0,75225.0,0.0832]
[1730947438508,0.15503911,75235.0,75227.0,0.00415307]
[1730947438756,0.15503911,75230.0,75227.0,0.00415307]
[1730947438962,1.5,75228.0,75227.0,0.00415307]
[1730947439164,1.5,75228.0,75220.0,0.00415307]
[1730947439303,0.15503911,75230.0,75220.0,0.00415307]
[1730947440263,0.15503911,75230.0,75220.0,0.00415333]
[1730947440875,0.15503911,75230.0,75219.0,0.0462]
[1730947440876,0.15503911,75230.0,75219.0,0.05035333]
[1730947441168,0.15503911,75230.0,75220.0,0.00415333]
[1730947441372,1.5,75227.0,75221.0,0.00415333]
[1730947441816,1.5,75227.0,75222.0,0.00415333]
[1730947442030,1.50940572,75227.0,75223.0,0.00415333]
[1730947442247,1.50940572,75227.0,75224.0,0.00415333]
[1730947442690,1.50940572,75227.0,75219.0,0.0462]
[1730947442691,1.50940572,75227.0,75220.0,0.00415328]
[1730947442890,1.50940572,75227.0,75221.0,0.00415328]